bitfinex/quotes_SOLUSD_20251115
["timestamp","ask_amount","ask_price","bid_price","bid_amount"]
[1763226486668,2.86295167,142.88,142.84,0.2]
[1763226486868,23.3612,142.89,142.84,0.2]
[1763226486869,73.3612,142.89,142.84,0.2]
[1763226487070,2.86295167,142.86,142.84,0.2]
[1763226487372,2.86295167,142.85,142.84,0.2]
[1763226487572,0.71,142.87,142.84,0.2]
[1763226487780,0.71,142.86,142.84,0.2]
[1763226487990,0.71,142.87,142.84,0.2]
[1763226488293,0.71,142.87,142.84,3.06295167]
[1763226488784,0.71,142.87,142.84,0.2]
[1763226489488,3.57295167,142.87,142.84,0.2]
[1763226489690,10.49882769,142.87,142.84,0.2]
[1763226489905,0.71,142.86,142.84,0.2]
[1763226490195,0.71,142.87,142.84,3.06295167]
[1763226490498,0.71,142.87,142.84,0.2]
[1763226490499,3.57295167,142.87,142.84,0.2]
[1763226490704,2.86295167,142.85,142.84,0.2]
[1763226490989,2.54985949,142.86,142.84,0.2]
[1763226491175,0.71,142.86,142.84,0.2]
[1763226491492,1.83985949,142.87,142.84,0.2]
[1763226491806,1.83985949,142.88,142.84,0.87]
[1763226492296,0.72,142.87,142.84,0.2]
[1763226492668,0.72,142.87,142.84,2.03985949]
[1763226493284,0.72,142.87,142.84,0.2]
[1763226493596,2.55985949,142.87,142.84,0.2]
[1763226494095,0.71,142.86,142.84,0.2]
[1763226494975,0.71,142.86,142.84,62.0]
[1763226495182,0.71,142.88,142.84,64.53985949]
[1763226495586,0.71,142.88,142.84,63.83985949]
[1763226495895,2.54985949,142.88,142.84,63.83985949]
[1763226496078,0.71,142.87,142.84,62.0]
[1763226497499,1.83985949,142.86,142.84,62.0]
[1763226497793,0.71,142.87,142.84,0.2]
[1763226497998,2.54985949,142.86,142.84,0.2]
[1763226498203,0.71,142.88,142.83,1.83985949]
[1763226498498,1.83985949,142.89,142.84,1.83985949]
[1763226498701,1.83985949,142.9,142.85,1.83985949]
[1763226498999,2.54985949,142.93,142.89,1.83985949]
[1763226499298,22.6512,142.92,142.89,61.7]
[1763226499487,1.83985949,142.9,142.89,61.7]
[1763226499684,1.83985949,142.9,142.84,63.53985949]
[1763226499987,0.71,142.89,142.84,63.53985949]
[1763226500200,2.54985949,142.89,142.84,63.53985949]
[1763226500511,2.54985949,142.88,142.84,61.7]
[1763226500979,2.54985949,142.87,142.84,61.7]
[1763226501189,1.83985949,142.86,142.84,61.7]
[1763226501499,2.54985949,142.86,142.84,61.7]
[1763226501698,0.71,142.85,142.84,61.7]
[1763226502280,0.71,142.85,142.84,61.2]
[1763226502484,2.54985949,142.86,142.84,61.2]
[1763226502884,0.71,142.9,142.85,2.53985949]
[1763226503085,2.54985949,142.9,142.86,1.83985949]
[1763226503290,2.54985949,142.9,142.86,2.53985949]
[1763226503688,0.71,142.92,142.88,1.83985949]
[1763226504006,2.54985949,142.91,142.87,63.03985949]
[1763226504193,0.71,142.91,142.87,63.03985949]
[1763226505291,0.71,142.91,142.87,63.73985949]
[1763226505493,1.83985949,142.92,142.87,63.73985949]
[1763226505679,0.71,142.91,142.88,1.83985949]
[1763226506076,2.54985949,142.93,142.88,1.83985949]
[1763226506281,0.71,142.92,142.88,1.83985949]
[1763226507607,0.71,142.92,142.87,61.9]
[1763226507608,0.71,142.94,142.89,2.53985949]
[1763226507905,1.83985949,142.95,142.9,1.83985949]
[1763226508393,2.54985949,142.94,142.9,1.83985949]
[1763226509105,2.54985949,142.94,142.9,63.03985949]
[1763226510179,1.83985949,142.91,142.9,61.2]
[1763226510388,1.83985949,142.91,142.87,61.2]
[1763226510700,1.83985949,142.89,142.84,63.73985949]
[1763226511081,0.71,142.88,142.84,63.73985949]
[1763226511288,1.83985949,142.89,142.85,1.83985949]
[1763226511488,0.71,142.92,142.87,1.83985949]
[1763226511709,2.54985949,142.92,142.88,1.83985949]
[1763226512198,0.71,142.91,142.87,63.73985949]
[1763226512808,2.54985949,142.91,142.87,63.73985949]
[1763226513200,1.83985949,142.92,142.88,0.7]
[1763226513399,0.71,142.93,142.88,2.53985949]
[1763226513707,1.83985949,142.94,142.89,1.83985949]
[1763226513914,0.71,142.93,142.89,1.83985949]
[1763226514109,0.71,142.93,142.89,2.53985949]
[1763226514514,2.54985949,142.93,142.89,1.83985949]
[1763226515214,0.71,142.92,142.88,63.73985949]
[1763226515415,2.54985949,142.92,142.88,63.73985949]
[1763226515800,0.71,142.92,142.88,63.73985949]
[1763226516111,0.71,142.91,142.88,61.2]
[1763226518322,2.54985949,142.93,142.88,63.73985949]
[1763226518498,2.54985949,142.93,142.88,61.2]
[1763226518813,2.54985949,142.92,142.88,61.2]
[1763226519017,2.54985949,142.92,142.88,63.73985949]
[1763226519400,0.71,142.91,142.88,61.2]
[1763226520306,2.54985949,142.91,142.88,61.2]
[1763226520508,1.83985949,142.9,142.88,61.2]
[1763226520707,0.71,142.9,142.88,61.2]
[1763226520900,0.71,142.89,142.88,61.2]
[1763226525718,2.54985949,142.89,142.86,61.2]
[1763226525921,1.83985949,142.87,142.86,61.2]
[1763226526218,1.83985949,142.87,142.82,61.2]
[1763226526401,0.67,142.86,142.82,63.03985949]
[1763226526712,0.67,142.86,142.83,1.83985949]
[1763226527292,2.50985949,142.86,142.82,63.71985949]
[1763226527714,0.67,142.85,142.82,63.03985949]
[1763226528013,0.67,142.85,142.8,22.8512]
[1763226528014,1.83985949,142.84,142.8,0.2]
[1763226528408,1.83985949,142.84,142.8,0.88]
[1763226528603,1.83985949,142.84,142.8,2.71985949]
[1763226528804,22.6512,142.88,142.81,2.51985949]
[1763226529004,1.83985949,142.86,142.81,0.68]
[1763226529205,1.83985949,142.85,142.81,0.68]
[1763226529402,1.83985949,142.86,142.81,2.51985949]
[1763226530004,0.67,142.85,142.82,2.51985949]
[1763226530594,2.50985949,142.85,142.8,0.2]
[1763226530800,1.83985949,142.83,142.8,0.2]
[1763226531212,0.67,142.82,142.8,0.2]
[1763226532308,2.50985949,142.82,142.8,0.2]
[1763226532518,0.67,142.82,142.8,0.2]
[1763226532712,1.83985949,142.83,142.8,0.2]
[1763226532905,59.78882769,142.87,142.8,2.71985949]
[1763226533112,1.83985949,142.85,142.81,1.83985949]
[1763226533313,0.67,142.86,142.81,0.68]
[1763226533516,1.83985949,142.85,142.81,2.51985949]
[1763226533709,1.83985949,142.85,142.81,63.71985949]
[1763226533911,1.83985949,142.86,142.82,0.68]
[1763226534218,0.67,142.85,142.82,1.83985949]
[1763226534417,0.67,142.85,142.82,0.68]
[1763226534629,2.50985949,142.87,142.83,0.68]
[1763226534813,0.67,142.86,142.83,61.88]
[1763226535129,2.50985949,142.86,142.83,61.2]
[1763226535527,0.67,142.85,142.83,61.2]
[1763226535712,2.50985949,142.85,142.8,2.03985949]
[1763226535912,0.67,142.85,142.81,2.51985949]
[1763226536211,2.50985949,142.84,142.8,0.2]
[1763226536421,1.83985949,142.84,142.8,0.2]
[1763226536605,2.50985949,142.83,142.8,0.2]
[1763226537328,0.67,142.82,142.8,0.2]
[1763226538110,1.83985949,142.84,142.8,0.2]
[1763226538325,2.50985949,142.83,142.8,0.2]
[1763226539017,0.67,142.82,142.8,0.2]
[1763226539222,2.50985949,142.83,142.8,0.2]
[1763226539821,59.78882769,142.87,142.8,0.2]
[1763226540127,1.83985949,142.83,142.8,0.2]
[1763226540433,2.50985949,142.82,142.8,0.2]
[1763226540813,0.67,142.81,142.8,0.2]
[1763226541214,2.50985949,142.81,142.8,0.2]
[1763226541723,9.78882769,142.84,142.8,0.2]
[1763226542033,1.83985949,142.82,142.8,0.2]
[1763226542512,2.50985949,142.83,142.8,0.2]
[1763226542932,2.50985949,142.82,142.8,0.2]
[1763226543636,1.83985949,142.82,142.8,0.2]
[1763226543930,2.50985949,142.81,142.8,0.2]
[1763226544830,22.6512,142.85,142.8,0.88]
[1763226545029,1.83985949,142.83,142.8,0.88]
[1763226545406,2.50985949,142.82,142.8,0.2]
[1763226546515,2.50985949,142.81,142.8,0.2]
[1763226546717,1.83985949,142.81,142.8,0.2]
[1763226548027,1.83985949,142.82,142.8,0.2]
[1763226548213,1.83985949,142.83,142.8,0.2]
[1763226548424,2.50985949,142.82,142.8,0.2]
[1763226549532,2.50985949,142.82,142.8,61.4]
[1763226549726,0.67,142.81,142.8,0.2]
[1763226549941,2.50985949,142.81,142.8,0.2]
[1763226550233,12.29868718,142.81,142.8,0.2]
[1763226550733,64.13854667,142.81,142.8,0.2]
[1763226550923,63.33659368,142.81,142.8,0.2]
[1763226551119,66.21435967,142.81,142.8,0.2]
[1763226551324,26.19896599,142.81,142.8,0.2]
[1763226551521,50.0,142.83,142.8,0.2]
[1763226551725,3.52776599,142.82,142.8,0.2]
[1763226552122,0.65,142.82,142.8,0.2]
[1763226552320,3.52776599,142.81,142.8,0.2]
[1763226552917,13.31659368,142.81,142.8,0.2]
[1763226558741,35.96779368,142.81,142.8,0.2]
[1763226560044,85.96779368,142.81,142.8,0.2]
[1763226560243,88.84555967,142.81,142.8,0.2]
[1763226562076,83.09002769,142.81,142.8,0.2]
[1763226562270,88.84555967,142.81,142.8,0.2]
[1763226563744,59.78882769,142.8,142.79,0.2]
[1763226563953,59.78882769,142.79,142.78,0.2]
[1763226564155,63.34659368,142.79,142.78,0.2]
[1763226570142,9.78882769,142.82,142.78,0.92]
[1763226570368,2.87776599,142.8,142.78,0.92]
[1763226570743,35.31779368,142.82,142.79,0.72]
[1763226571054,0.68,142.84,142.79,3.59776599]
[1763226571055,2.87776599,142.83,142.79,3.59776599]
[1763226571355,9.78882769,142.83,142.79,3.59776599]
[1763226571545,26.20896599,142.84,142.8,0.72]
[1763226571948,2.87776599,142.83,142.8,0.72]
[1763226572168,50.0,142.87,142.81,2.87776599]
[1763226572475,25.52896599,142.86,142.81,2.87776599]
[1763226572649,25.52896599,142.86,142.82,0.72]
[1763226573547,2.87776599,142.85,142.82,0.72]
[1763226573941,2.87776599,142.84,142.82,0.72]
[1763226574142,23.3312,142.86,142.78,0.2]
[1763226574143,2.87776599,142.83,142.79,0.72]
[1763226574647,3.55776599,142.83,142.79,0.72]
[1763226576766,2.87776599,142.83,142.79,0.72]
[1763226576949,9.78882769,142.85,142.81,2.87776599]
[1763226576950,2.87776599,142.85,142.81,2.87776599]
[1763226577142,25.52896599,142.86,142.81,2.87776599]
[1763226577343,25.52896599,142.86,142.82,0.72]
[1763226578467,2.87776599,142.86,142.82,0.72]
[1763226578638,59.78882769,142.87,142.82,0.72]
[1763226578845,2.87776599,142.87,142.82,3.59776599]
[1763226579062,19.71776599,142.88,142.83,2.87776599]
[1763226579347,19.71776599,142.88,142.83,3.59776599]
[1763226579563,19.71776599,142.88,142.84,0.72]
[1763226579756,2.87776599,142.85,142.8,62.52]
[1763226579947,2.87776599,142.83,142.8,0.72]
[1763226580149,12.66659368,142.86,142.81,0.72]
[1763226580150,2.87776599,142.84,142.81,0.72]
[1763226580345,2.87776599,142.85,142.81,0.72]
[1763226580866,22.6512,142.87,142.81,3.59776599]
[1763226581169,25.52896599,142.87,142.82,2.87776599]
[1763226581467,2.87776599,142.87,142.83,0.72]
[1763226581655,2.87776599,142.85,142.83,0.72]
[1763226583252,10.46882769,142.87,142.83,0.72]
[1763226583475,2.87776599,142.85,142.83,0.72]
[1763226584869,2.87776599,142.85,142.83,62.52]
[1763226586879,2.87776599,142.85,142.83,62.49]
[1763226587350,2.87776599,142.85,142.84,0.69]
[1763226589274,3.55776599,142.85,142.83,61.8]
[1763226589474,9.78882769,142.87,142.84,0.69]
[1763226589661,2.87776599,142.85,142.84,0.69]
[1763226590172,2.87776599,142.85,142.83,61.8]
[1763226590359,2.87776599,142.85,142.83,62.49]
[1763226590760,2.87776599,142.84,142.83,61.8]
[1763226591778,2.87776599,142.84,142.83,62.49]
[1763226595079,0.68,142.86,142.83,62.49]
[1763226595277,2.87776599,142.84,142.83,62.49]
[1763226596482,0.68,142.93,142.83,3.56776599]
[1763226596679,2.87776599,142.92,142.87,2.87776599]
[1763226596859,2.87776599,142.9,142.84,23.3412]
[1763226597054,2.87776599,142.9,142.85,0.69]
[1763226597365,2.87776599,142.86,142.82,0.69]
[1763226597565,22.6512,142.88,142.83,0.69]
[1763226597566,2.87776599,142.87,142.83,0.69]
[1763226598085,2.87776599,142.86,142.83,0.69]
[1763226598286,2.87776599,142.85,142.83,0.69]
[1763226598492,2.87776599,142.86,142.83,0.69]
[1763226598963,2.87776599,142.87,142.83,0.69]
[1763226599483,25.52896599,142.88,142.83,0.69]
[1763226599666,25.52896599,142.88,142.83,3.56776599]
[1763226599866,25.52896599,142.88,142.84,0.69]
[1763226600199,0.68,142.9,142.84,3.56776599]
[1763226600200,2.87776599,142.89,142.84,3.56776599]
[1763226600494,22.6512,142.9,142.86,2.87776599]
[1763226600495,2.87776599,142.9,142.86,2.87776599]
[1763226600695,2.87776599,142.88,142.84,0.69]
[1763226601192,0.68,142.89,142.84,0.69]
[1763226601361,2.87776599,142.88,142.84,0.69]
[1763226602969,2.87776599,142.86,142.83,62.49]
[1763226603175,2.87776599,142.86,142.84,0.69]
[1763226603560,2.87776599,142.85,142.83,62.49]
[1763226603867,2.87776599,142.86,142.83,62.49]
[1763226604075,2.87776599,142.86,142.84,0.69]
[1763226604266,2.87776599,142.87,142.84,0.69]
[1763226604669,2.87776599,142.86,142.84,0.69]
[1763226604869,2.87776599,142.87,142.84,0.69]
[1763226605792,2.87776599,142.88,142.84,3.56776599]
[1763226606099,2.87776599,142.89,142.84,3.56776599]
[1763226606311,2.87776599,142.88,142.85,0.69]
[1763226606687,3.55776599,142.88,142.85,0.69]
[1763226607203,2.87776599,142.87,142.85,0.69]
[1763226607502,2.87776599,142.88,142.85,0.69]
[1763226607685,3.55776599,142.88,142.85,0.69]
[1763226609397,2.87776599,142.88,142.85,0.69]
[1763226609610,23.3312,142.9,142.85,0.69]
[1763226609797,2.87776599,142.89,142.85,0.69]
[1763226610702,2.87776599,142.89,142.85,65.36776599]
[1763226610882,2.87776599,142.9,142.85,65.36776599]
[1763226611082,2.87776599,142.9,142.86,0.69]
[1763226612289,9.78882769,142.91,142.86,0.69]
[1763226612486,3.56776599,142.9,142.86,0.69]
[1763226612906,1.83858778,142.89,142.86,0.69]
[1763226614209,1.83858778,142.93,142.88,1.83858778]
[1763226614599,16.82,142.95,142.89,2.51858778]
[1763226614938,1.83858778,142.93,142.89,0.68]
[1763226618115,1.83858778,142.94,142.89,2.51858778]
[1763226618418,16.82,142.95,142.91,1.83858778]
[1763226618628,16.82,142.95,142.92,0.68]
[1763226619322,16.82,142.95,142.92,2.51858778]
[1763226619493,16.82,142.95,142.92,64.31858778]
[1763226619817,16.82,142.95,142.93,0.68]
[1763226621305,16.82,142.95,142.92,61.8]
[1763226621306,0.68,142.94,142.92,61.8]
[1763226621507,1.83858778,142.93,142.92,61.8]
[1763226621833,9.78882769,142.92,142.86,0.68]
[1763226622007,1.83858778,142.89,142.86,0.68]
[1763226622324,1.83858778,142.87,142.84,0.68]
[1763226622550,1.83858778,142.87,142.85,0.68]
[1763226623212,1.83858778,142.88,142.85,0.68]
[1763226624952,10.46882769,142.92,142.86,1.83858778]
[1763226625131,1.83858778,142.92,142.88,1.83858778]
[1763226625649,2.51858778,142.92,142.88,0.68]
[1763226625826,2.51858778,142.91,142.86,2.51858778]
[1763226626160,2.51858778,142.91,142.86,1.83858778]
[1763226626460,1.83858778,142.91,142.87,0.68]
[1763226627751,1.83858778,142.91,142.87,2.51858778]
[1763226628250,1.83858778,142.91,142.88,0.68]
[1763226628653,1.83858778,142.91,142.88,62.48]
[1763226629120,1.83858778,142.92,142.89,0.68]
[1763226629325,1.83858778,142.92,142.89,62.48]
[1763226629534,1.83858778,142.93,142.89,62.48]
[1763226629725,1.83858778,142.93,142.9,0.68]
[1763226630120,2.51858778,142.93,142.9,0.68]
[1763226630327,1.83858778,142.94,142.9,0.68]
[1763226631738,1.83858778,142.94,142.9,2.51858778]
[1763226632137,1.83858778,142.94,142.91,0.68]
[1763226632523,24.48978778,142.95,142.91,0.68]
[1763226632830,24.48978778,142.95,142.91,62.48]
[1763226632831,25.16978778,142.95,142.91,62.48]
[1763226633038,2.51858778,142.94,142.91,62.48]
[1763226634151,1.83858778,142.95,142.92,0.68]
[1763226635254,2.51858778,142.95,142.92,0.68]
[1763226635857,1.83858778,142.94,142.92,0.68]
[1763226636255,1.83858778,142.94,142.91,61.8]
[1763226636460,1.83858778,142.94,142.91,62.48]
[1763226636664,1.83858778,142.93,142.91,61.8]
[1763226636971,1.83858778,142.93,142.91,62.48]
[1763226637372,1.83858778,142.93,142.91,61.8]
[1763226637569,2.51858778,142.92,142.91,61.8]
[1763226637738,2.51858778,142.92,142.87,62.48]
[1763226638064,1.83858778,142.91,142.87,62.48]
[1763226638234,2.51858778,142.92,142.88,0.68]
[1763226638436,0.68,142.97,142.9,1.83858778]
[1763226638737,1.83858778,142.95,142.91,0.68]
[1763226639571,33.12002769,142.97,142.91,0.68]
[1763226639743,1.83858778,142.96,142.91,2.51858778]
[1763226640062,2.51858778,142.96,142.91,2.51858778]
[1763226640252,2.51858778,142.96,142.92,0.68]
[1763226643544,2.48858778,142.96,142.92,0.68]
[1763226645964,1.83858778,142.96,142.92,0.68]
[1763226646173,1.83858778,142.95,142.92,0.68]
[1763226646340,2.48858778,142.95,142.92,0.68]
[1763226646546,32.44002769,142.97,142.91,61.8]
[1763226646547,2.48858778,142.94,142.91,61.8]
[1763226646762,1.83858778,142.94,142.91,62.51]
[1763226646961,1.83858778,142.94,142.92,0.71]
[1763226647856,0.65,142.96,142.92,0.71]
[1763226648065,1.83858778,142.95,142.92,0.71]
[1763226648465,2.48858778,142.95,142.92,0.71]
[1763226648870,1.83858778,142.95,142.92,0.71]
[1763226649259,2.48858778,142.95,142.92,0.71]
[1763226650464,1.83858778,142.93,142.91,61.8]
[1763226650968,0.65,142.92,142.91,61.8]
[1763226651272,0.65,142.95,142.91,62.51]
[1763226651473,1.83858778,142.94,142.91,62.51]
[1763226651873,22.6512,142.97,142.92,0.71]
[1763226652071,1.83858778,142.95,142.92,62.51]
[1763226652265,1.83858778,142.96,142.92,62.51]
[1763226652580,1.83858778,142.95,142.92,62.51]
[1763226652881,1.83858778,142.95,142.93,0.71]
[1763226654473,0.65,142.96,142.93,0.71]
[1763226654474,1.83858778,142.96,142.93,0.71]
[1763226654678,2.48858778,142.96,142.93,0.71]
[1763226655564,1.83858778,142.95,142.93,0.71]
[1763226655765,1.83858778,142.95,142.92,62.51]
[1763226655963,1.83858778,142.95,142.93,0.71]
[1763226657272,1.83858778,142.94,142.92,61.8]
[1763226657469,1.83858778,142.94,142.93,0.71]
[1763226657668,1.83858778,142.95,142.93,0.71]
[1763226657864,1.83858778,142.94,142.92,61.8]
[1763226658172,1.83858778,142.93,142.92,61.8]
[1763226659790,2.48858778,142.94,142.92,61.8]
[1763226659989,1.83858778,142.94,142.92,61.8]
[1763226661585,1.83858778,142.94,142.92,62.51]
[1763226661777,2.48858778,142.95,142.92,62.51]
[1763226662182,1.83858778,142.95,142.92,62.51]
[1763226662765,2.48858778,142.95,142.92,62.51]
[1763226662965,2.48858778,142.95,142.92,61.8]
[1763226662966,1.83858778,142.94,142.92,61.8]
[1763226663165,2.48858778,142.95,142.92,61.8]
[1763226663589,2.48858778,142.95,142.92,62.51]
[1763226664385,2.48858778,142.95,142.92,61.8]
[1763226664583,2.48858778,142.95,142.92,62.51]
[1763226664789,1.83858778,142.95,142.93,0.71]
[1763226665183,1.83858778,142.96,142.93,0.71]
[1763226667007,1.83858778,142.98,142.94,1.83858778]
[1763226667302,11.72741547,142.99,142.95,0.71]
[1763226667614,0.1,142.99,142.95,0.71]
[1763226668882,0.1,142.99,142.97,1.83858778]
[1763226669287,0.1,142.99,142.96,1.83858778]
[1763226669470,0.1,142.99,142.97,0.71]
[1763226672705,0.1,142.99,142.97,62.51]
[1763226672897,0.1,142.99,142.98,0.69]
[1763226674328,0.1,142.99,142.97,62.47]
[1763226675519,0.1,142.99,142.98,0.67]
[1763226676219,0.1,142.99,142.98,3.53854379]
[1763226676426,0.1,142.99,142.98,0.67]
[1763226677499,0.1,142.99,142.98,3.53854379]
[1763226678507,0.1,142.99,142.98,65.33854379]
[1763226678821,0.1,142.99,142.98,62.47]
[1763226679320,0.1,142.99,142.98,65.33854379]
[1763226679518,0.1,142.99,142.98,62.47]
[1763226679825,0.1,142.99,142.98,61.8]
[1763226680331,0.1,142.99,142.98,62.47]
[1763226682721,0.1,142.99,142.98,61.8]
[1763226683107,2.96854379,142.99,142.98,61.8]
[1763226683809,0.1,142.99,142.98,61.8]
[1763226684010,2.96854379,142.99,142.98,61.8]
[1763226684226,0.1,142.99,142.98,61.8]
[1763226684431,0.1,142.99,142.98,62.47]
[1763226691636,3.67854379,142.99,142.98,61.8]
[1763226691938,2.96854379,142.99,142.98,61.8]
[1763226692830,0.1,142.99,142.98,62.47]
[1763226696746,0.1,143.01,142.98,75.20073386]
[1763226697042,0.1,143.01,143.0,46.54974379]
[1763226697237,0.1,143.06,143.0,47.21974379]
[1763226697545,0.1,143.06,143.05,2.86854379]
[1763226697842,0.1,143.08,143.07,22.6512]
[1763226698014,0.1,143.08,143.07,25.51974379]
[1763226698215,0.1,143.08,143.07,47.21974379]
[1763226698638,0.1,143.09,143.08,30.81882769]
[1763226698828,0.1,143.09,143.08,44.21501227]
[1763226699444,0.1,143.09,143.08,23.18501227]
[1763226701923,0.1,143.09,143.08,0.67]
[1763226702243,0.1,143.09,143.08,13.32737148]
[1763226703553,0.1,143.09,143.08,16.19591527]
[1763226704248,0.1,143.09,143.08,77.99591527]
[1763226704544,0.1,143.09,143.08,80.79615329]
[1763226706363,0.1,143.14,143.13,61.4]
[1763226706643,0.1,143.14,143.13,64.26854379]
[1763226706845,0.1,143.14,143.13,64.93854379]
[1763226708739,0.1,143.14,143.13,35.97857148]
[1763226709649,0.1,143.15,143.13,36.67723702]
[1763226709850,3.54854379,143.27,143.21,22.6512]
[1763226710046,3.54854379,143.27,143.23,2.86854379]
[1763226710243,0.68,143.27,143.23,2.86854379]
[1763226710458,0.68,143.31,143.23,3.53854379]
[1763226710632,3.54854379,143.29,143.23,23.3212]
[1763226710952,3.54854379,143.27,143.23,25.51974379]
[1763226711150,0.68,143.27,143.23,25.51974379]
[1763226711368,3.54854379,143.27,143.23,22.6512]
[1763226711535,0.68,143.25,143.23,2.86854379]
[1763226711735,0.68,143.25,143.2,32.44002769]
[1763226711938,0.68,143.25,143.23,2.86854379]
[1763226712443,3.54854379,143.28,143.23,2.86854379]
[1763226712743,2.86854379,143.27,143.23,2.86854379]
[1763226712948,3.54854379,143.26,143.22,2.86854379]
[1763226713625,0.68,143.26,143.22,2.86854379]
[1763226713831,0.68,143.26,143.2,33.11002769]
[1763226714048,22.6512,143.3,143.2,32.44002769]
[1763226714246,3.54854379,143.27,143.22,2.86854379]
[1763226715636,2.86854379,143.26,143.2,94.24002769]
[1763226715848,0.68,143.26,143.22,2.86854379]
[1763226716147,2.86854379,143.26,143.18,83.45709293]
[1763226716352,0.78,143.24,143.15,62.47]
[1763226716556,2.86854379,143.22,143.18,2.86854379]
[1763226716737,2.86854379,143.23,143.18,2.86854379]
[1763226717048,2.86854379,143.23,143.19,2.86854379]
[1763226717049,0.68,143.23,143.19,2.86854379]
[1763226718253,3.54854379,143.23,143.19,2.86854379]
[1763226718557,0.68,143.22,143.19,2.86854379]
[1763226719736,0.68,143.22,143.2,2.86854379]
[1763226721043,2.86854379,143.21,143.15,61.8]
[1763226721241,2.86854379,143.21,143.14,10.45882769]
[1763226721242,0.68,143.2,143.14,10.45882769]
[1763226721444,0.68,143.2,143.18,2.86854379]
[1763226721655,0.68,143.2,143.15,61.8]
[1763226721836,0.68,143.2,143.15,64.66854379]
[1763226722159,0.68,143.2,143.18,2.86854379]
[1763226722456,0.68,143.2,143.17,2.86854379]
[1763226722673,0.68,143.2,143.15,61.8]
[1763226722674,0.68,143.23,143.19,2.86854379]
[1763226722860,0.68,143.22,143.2,2.86854379]
[1763226723551,3.54854379,143.22,143.17,2.86854379]
[1763226724061,0.68,143.21,143.17,2.86854379]
[1763226724851,0.68,143.21,143.16,22.6512]
[1763226724852,0.68,143.21,143.18,2.86854379]
[1763226725837,0.68,143.21,143.17,2.86854379]
[1763226726038,3.54854379,143.21,143.14,23.3212]
[1763226726342,3.54854379,143.21,143.17,2.86854379]
[1763226726643,0.68,143.2,143.18,2.86854379]
[1763226727041,0.68,143.2,143.15,0.67]
[1763226727450,0.68,143.2,143.17,2.86854379]
[1763226728060,0.68,143.2,143.17,64.66854379]
[1763226729262,3.54854379,143.2,143.17,61.8]
[1763226729748,0.68,143.19,143.17,61.8]
[1763226730663,3.54854379,143.19,143.17,61.8]
[1763226731046,3.54854379,143.18,143.17,61.8]
[1763226731347,3.54854379,143.18,143.13,61.08]
[1763226731660,22.6512,143.19,143.13,61.08]
[1763226731661,2.86854379,143.14,143.13,61.08]
[1763226732067,3.57854379,143.14,143.13,61.08]
[1763226732374,2.86854379,143.16,143.13,61.8]
[1763226732961,2.86854379,143.17,143.13,61.8]
[1763226733144,2.86854379,143.15,143.13,61.08]
[1763226733662,2.86854379,143.22,143.14,3.57854379]
[1763226733856,2.86854379,143.19,143.14,64.65854379]
[1763226734046,3.56854379,143.19,143.15,0.71]
[1763226734246,2.86854379,143.18,143.15,0.71]
[1763226734561,22.6512,143.23,143.15,0.71]
[1763226734753,2.86854379,143.19,143.15,0.71]
[1763226734956,2.86854379,143.18,143.13,36.01857148]
[1763226735472,0.7,143.18,143.14,3.57854379]
[1763226735769,2.86854379,143.21,143.17,2.86854379]
[1763226736265,2.86854379,143.22,143.18,0.71]
[1763226736441,0.1,143.24,143.18,3.57854379]
[1763226736646,2.86854379,143.23,143.18,3.57854379]
[1763226736842,0.1,143.24,143.19,2.53990831]
[1763226737049,1.92990831,143.24,143.2,1.82990831]